[Event "1st Rapid Chess Tournament Château Montaiguillon"]
[Site "Montagne - Saint Emilion, France"]
[Date "2019.09.08"]
[Round "5.3"]
[White "Sochacki, Christophe"]
[Black "Fantinel, Thibault"]
[Result "1-0"]
[TimeControl "12' + 3''"]
[WhiteElo "2481"]
[BlackElo "2381"]

1. e4 {[%clk 00:12:04]} c5 {[%clk 00:12:04]} {[%emt 00:00:02]} 2. Nf3 {[%clk
00:12:06]} {[%emt 00:00:02]} Nc6 {[%clk 00:12:06]} 3. b4 {[%clk 00:12:06]}
{[%emt 00:00:03]} e5 {[%clk 00:11:04]} {[%emt 00:01:05]} 4. Bb2 {[%clk
00:11:28]} {[%emt 00:00:42]} Nf6 {[%clk 00:10:38]} {[%emt 00:00:29]} 5. b5
{[%clk 00:10:59]} {[%emt 00:00:32]} Nd4 {[%clk 00:10:32]} {[%emt 00:00:09]} 6.
Nxe5 {[%clk 00:10:59]} {[%emt 00:00:02]} Qe7 {[%clk 00:09:52]} {[%emt
00:00:42]} 7. Bxd4 {[%clk 00:10:49]} {[%emt 00:00:13]} cxd4 {[%clk 00:09:54]}
{[%emt 00:00:02]} 8. Nf3 {[%clk 00:10:51]} Qxe4+ {[%clk 00:09:40]} {[%emt
00:00:17]} 9. Be2 {[%clk 00:10:39]} {[%emt 00:00:15]} Bc5 {[%clk 00:09:01]}
{[%emt 00:00:41]} 10. O-O {[%clk 00:10:40]} {[%emt 00:00:03]} O-O {[%clk
00:09:02]} {[%emt 00:00:02]} 11. Re1 {[%clk 00:10:32]} {[%emt 00:00:11]} d6
{[%clk 00:08:04]} {[%emt 00:01:01]} 12. Bd3 {[%clk 00:10:10]} {[%emt 00:00:25]}
Qg4 {[%clk 00:08:04]} {[%emt 00:00:03]} 13. c3 {[%clk 00:09:43]} {[%emt
00:00:30]} dxc3 {[%clk 00:07:43]} {[%emt 00:00:25]} 14. Nxc3 {[%clk 00:09:20]}
{[%emt 00:00:25]} Bf5 {[%clk 00:06:30]} {[%emt 00:01:15]} 15. Qc2 {[%clk
00:09:12]} {[%emt 00:00:11]} Bxd3 {[%clk 00:06:23]} {[%emt 00:00:11]} 16. Qxd3
{[%clk 00:09:14]} {[%emt 00:00:01]} Rfe8 {[%clk 00:05:36]} {[%emt 00:00:50]} 17.
Kf1 {[%clk 00:09:00]} {[%emt 00:00:16]} Rad8 {[%clk 00:05:16]} {[%emt
00:00:23]} 18. h3 {[%clk 00:08:46]} {[%emt 00:00:17]} Qg6 {[%clk 00:04:50]}
{[%emt 00:00:28]} 19. Qxg6 {[%clk 00:08:43]} {[%emt 00:00:06]} hxg6 {[%clk
00:04:52]} {[%emt 00:00:01]} 20. Rab1 {[%clk 00:06:31]} {[%emt 00:02:15]} d5
{[%clk 00:03:47]} {[%emt 00:01:08]} 21. d3 {[%clk 00:06:33]} Kf8 {[%clk
00:03:34]} {[%emt 00:00:17]} 22. Rxe8+ {[%clk 00:05:49]} {[%emt 00:00:47]} Rxe8
{[%clk 00:03:24]} {[%emt 00:00:13]} 23. g4 {[%clk 00:05:50]} {[%emt 00:00:02]}
Rd8 {[%clk 00:03:00]} {[%emt 00:00:28]} 24. Rc1 {[%clk 00:05:30]} {[%emt
00:00:23]} Ba3 {[%clk 00:02:45]} {[%emt 00:00:18]} 25. Rb1 {[%clk 00:05:26]}
{[%emt 00:00:07]} Ke7 {[%clk 00:02:06]} {[%emt 00:00:42]} 26. g5 {[%clk
00:03:59]} {[%emt 00:01:31]} Nh5 {[%clk 00:01:52]} {[%emt 00:00:16]} 27. Rb3
{[%clk 00:03:19]} {[%emt 00:00:43]} Bc5 {[%clk 00:01:45]} {[%emt 00:00:10]} 28.
d4 {[%clk 00:03:03]} {[%emt 00:00:19]} Bb6 {[%clk 00:01:47]} {[%emt 00:00:02]}
29. Na4 {[%clk 00:03:05]} Rc8 {[%clk 00:01:26]} {[%emt 00:00:23]} 30. Re3+
{[%clk 00:03:02]} {[%emt 00:00:06]} Kf8 {[%clk 00:01:15]} {[%emt 00:00:14]} 31.
Nxb6 {[%clk 00:02:37]} {[%emt 00:00:28]} axb6 {[%clk 00:01:17]} {[%emt
00:00:01]} 32. Ne5 {[%clk 00:02:39]} {[%emt 00:00:01]} Rc7 {[%clk 00:00:35]}
{[%emt 00:00:45]} 33. Kg2 {[%clk 00:02:28]} {[%emt 00:00:14]} Nf4+ {[%clk
00:00:16]} {[%emt 00:00:22]} 34. Kg3 {[%clk 00:02:30]} {[%emt 00:00:01]} Ne6
{[%clk 00:00:18]} {[%emt 00:00:01]} 35. Nxg6+ {[%clk 00:02:31]} {[%emt
00:00:02]} Kg8 {[%clk 00:00:21]} 36. Nf4 {[%clk 00:02:31]} {[%emt 00:00:03]}
Nxd4 {[%clk 00:00:15]} {[%emt 00:00:09]} 37. Re8+ {[%clk 00:02:25]} {[%emt
00:00:09]} Kh7 {[%clk 00:00:17]} 38. Nxd5 {[%clk 00:02:26]} {[%emt 00:00:03]}
Rc5 {[%clk 00:00:13]} {[%emt 00:00:07]} 39. Rd8 {[%clk 00:02:07]} {[%emt
00:00:21]} Rxb5 {[%clk 00:00:09]} {[%emt 00:00:08]} 40. h4 {[%clk 00:02:07]}
{[%emt 00:00:04]} Nc6 {[%clk 00:00:10]} {[%emt 00:00:02]} 41. Rd6 {[%clk
00:02:04]} {[%emt 00:00:06]} Ra5 {[%clk 00:00:08]} {[%emt 00:00:05]} 42. h5
{[%clk 00:01:55]} {[%emt 00:00:11]} Ne5 {[%clk 00:00:09]} {[%emt 00:00:03]} 43.
f4 {[%clk 00:01:45]} {[%emt 00:00:12]} Nc4 {[%clk 00:00:07]} {[%emt 00:00:04]}
44. Rd7 {[%clk 00:01:42]} {[%emt 00:00:06]} Ra3+ {[%clk 00:00:07]} {[%emt
00:00:04]} 45. Kg4 {[%clk 00:01:35]} {[%emt 00:00:10]} Rxa2 {[%clk 00:00:04]}
{[%emt 00:00:06]} 46. Rxf7 {[%clk 00:01:34]} {[%emt 00:00:03]} Nd6 {[%clk
00:00:06]} {[%emt 00:00:02]} 47. Nf6+ {[%clk 00:01:32]} {[%emt 00:00:05]} 1-0

[Event "1st Rapid Chess Tournament Château Montaiguillon"]
[Site "Montagne - Saint Emilion, France"]
[Date "2019.09.08"]
[Round "5.2"]
[White "Lagarde, Maxime"]
[Black "Fressinet, Laurent"]
[Result "1/2-1/2"]
[TimeControl "12' + 3''"]
[WhiteElo "2599"]
[BlackElo "2625"]

1. d4 {[%clk 00:12:05]} Nf6 {[%clk 00:12:02]} {[%emt 00:00:06]} 2. Nc3 {[%clk
00:12:07]} d5 {[%clk 00:11:59]} {[%emt 00:00:07]} 3. Bf4 {[%clk 00:12:08]} a6
{[%clk 00:11:37]} {[%emt 00:00:26]} 4. e3 {[%clk 00:12:06]} {[%emt 00:00:05]}
e6 {[%clk 00:11:35]} {[%emt 00:00:05]} 5. Nf3 {[%clk 00:11:58]} {[%emt
00:00:11]} c5 {[%clk 00:11:30]} {[%emt 00:00:09]} 6. Bd3 {[%clk 00:10:20]}
{[%emt 00:01:41]} Nbd7 {[%clk 00:11:17]} {[%emt 00:00:15]} 7. h3 {[%clk
00:09:44]} {[%emt 00:00:39]} b5 {[%clk 00:11:15]} {[%emt 00:00:05]} 8. a3
{[%clk 00:09:41]} {[%emt 00:00:06]} Bb7 {[%clk 00:11:12]} {[%emt 00:00:07]} 9.
O-O {[%clk 00:09:16]} {[%emt 00:00:28]} Be7 {[%clk 00:11:13]} {[%emt 00:00:02]}
10. dxc5 {[%clk 00:08:55]} {[%emt 00:00:24]} Nxc5 {[%clk 00:10:54]} {[%emt
00:00:21]} 11. Ne2 {[%clk 00:08:38]} {[%emt 00:00:20]} O-O {[%clk 00:10:34]}
{[%emt 00:00:23]} 12. Ned4 {[%clk 00:08:12]} {[%emt 00:00:29]} Rc8 {[%clk
00:10:24]} {[%emt 00:00:13]} 13. Bh2 {[%clk 00:07:05]} {[%emt 00:01:10]} Bd6
{[%clk 00:09:33]} {[%emt 00:00:54]} 14. Ne5 {[%clk 00:06:58]} {[%emt 00:00:10]}
Qe7 {[%clk 00:08:13]} {[%emt 00:01:23]} 15. f4 {[%clk 00:06:25]} {[%emt
00:00:36]} Nfe4 {[%clk 00:07:18]} {[%emt 00:00:57]} 16. b4 {[%clk 00:06:10]}
{[%emt 00:00:18]} Na4 {[%clk 00:07:02]} {[%emt 00:00:20]} 17. Bxe4 {[%clk
00:04:55]} {[%emt 00:01:18]} dxe4 {[%clk 00:07:02]} {[%emt 00:00:02]} 18. c4
{[%clk 00:04:56]} {[%emt 00:00:02]} Nb2 {[%clk 00:06:15]} {[%emt 00:00:50]} 19.
Qh5 {[%clk 00:03:35]} {[%emt 00:01:23]} g6 {[%clk 00:06:02]} {[%emt 00:00:16]}
20. Qh6 {[%clk 00:03:33]} {[%emt 00:00:05]} Nxc4 {[%clk 00:04:48]} {[%emt
00:01:17]} 21. Rad1 {[%clk 00:02:19]} {[%emt 00:01:16]} f5 {[%clk 00:04:16]}
{[%emt 00:00:35]} 22. Bg3 {[%clk 00:01:40]} {[%emt 00:00:42]} Bd5 {[%clk
00:04:03]} {[%emt 00:00:16]} 23. Nxc4 {[%clk 00:01:24]} {[%emt 00:00:19]} bxc4
{[%clk 00:03:14]} {[%emt 00:00:52]} 24. Bh4 {[%clk 00:01:23]} {[%emt 00:00:04]}
Qf7 {[%clk 00:03:15]} {[%emt 00:00:01]} 25. Be1 {[%clk 00:01:11]} {[%emt
00:00:14]} c3 {[%clk 00:02:33]} {[%emt 00:00:46]} 26. Rc1 {[%clk 00:01:14]} c2
{[%clk 00:02:33]} {[%emt 00:00:03]} 27. Rxc2 {[%clk 00:01:14]} {[%emt
00:00:03]} Rxc2 {[%clk 00:02:35]} {[%emt 00:00:01]} 28. Nxc2 {[%clk 00:01:16]}
{[%emt 00:00:01]} Rc8 {[%clk 00:02:28]} {[%emt 00:00:10]} 29. Nd4 {[%clk
00:01:18]} Be7 {[%clk 00:02:19]} {[%emt 00:00:13]} 30. Bh4 {[%clk 00:00:44]}
{[%emt 00:00:37]} Bf8 {[%clk 00:02:19]} {[%emt 00:00:04]} 31. Qg5 {[%clk
00:00:46]} Rc3 {[%clk 00:02:13]} {[%emt 00:00:08]} 32. Qd8 {[%clk 00:00:46]}
{[%emt 00:00:04]} Qc7 {[%clk 00:01:47]} {[%emt 00:00:29]} 33. Qxc7 {[%clk
00:00:48]} {[%emt 00:00:02]} Rxc7 {[%clk 00:01:49]} {[%emt 00:00:01]} 34. Bf6
{[%clk 00:00:50]} Rc3 {[%clk 00:01:32]} {[%emt 00:00:19]} 35. Nxe6 {[%clk
00:00:41]} {[%emt 00:00:13]} Rxe3 {[%clk 00:01:33]} {[%emt 00:00:02]} 36. Nxf8
{[%clk 00:00:42]} {[%emt 00:00:02]} Kxf8 {[%clk 00:01:35]} 37. a4 {[%clk
00:00:41]} {[%emt 00:00:04]} Ra3 {[%clk 00:01:27]} {[%emt 00:00:07]} 38. Ra1
{[%clk 00:00:43]} {[%emt 00:00:04]} Rb3 {[%clk 00:00:36]} {[%emt 00:00:54]} 39.
Bd4 {[%clk 00:00:44]} {[%emt 00:00:01]} Kf7 {[%clk 00:00:37]} {[%emt 00:00:02]}
40. Bc5 {[%clk 00:00:45]} {[%emt 00:00:03]} Rb2 {[%clk 00:00:32]} {[%emt
00:00:08]} 41. Re1 {[%clk 00:00:40]} {[%emt 00:00:07]} Bc6 {[%clk 00:00:31]}
{[%emt 00:00:04]} 42. a5 {[%clk 00:00:40]} {[%emt 00:00:04]} Ke6 {[%clk
00:00:33]} {[%emt 00:00:01]} 43. Re3 {[%clk 00:00:23]} {[%emt 00:00:19]} Bb5
{[%clk 00:00:33]} {[%emt 00:00:03]} 44. g4 {[%clk 00:00:22]} {[%emt 00:00:04]}
Bd3 {[%clk 00:00:34]} {[%emt 00:00:02]} 45. Rg3 {[%clk 00:00:13]} {[%emt
00:00:12]} Rb1+ {[%clk 00:00:30]} {[%emt 00:00:08]} 46. Kf2 {[%clk 00:00:12]}
{[%emt 00:00:03]} Rb2+ {[%clk 00:00:32]} {[%emt 00:00:02]} 47. Kg1 {[%clk
00:00:12]} {[%emt 00:00:03]} Rb1+ {[%clk 00:00:25]} {[%emt 00:00:11]} 48. Kf2
{[%clk 00:00:14]} Rf1+ {[%clk 00:00:19]} {[%emt 00:00:09]} 49. Ke3 {[%clk
00:00:16]} {[%emt 00:00:01]} Kd5 {[%clk 00:00:21]} {[%emt 00:00:01]} 50. gxf5
{[%clk 00:00:15]} {[%emt 00:00:04]} gxf5 {[%clk 00:00:23]} {[%emt 00:00:01]} 51.
Ba7 {[%clk 00:00:06]} {[%emt 00:00:12]} h5 {[%clk 00:00:24]} {[%emt 00:00:02]}
52. Bb8 {[%clk 00:00:07]} {[%emt 00:00:02]} Re1+ {[%clk 00:00:21]} {[%emt
00:00:05]} 53. Kd2 {[%clk 00:00:10]} {[%emt 00:00:01]} Re2+ {[%clk 00:00:23]}
{[%emt 00:00:01]} 54. Kc3 {[%clk 00:00:12]} Rc2+ {[%clk 00:00:19]} {[%emt
00:00:07]} 55. Kb3 {[%clk 00:00:14]} {[%emt 00:00:01]} Rc8 {[%clk 00:00:20]}
{[%emt 00:00:02]} 56. Ba7 {[%clk 00:00:13]} {[%emt 00:00:05]} Re8 {[%clk
00:00:14]} {[%emt 00:00:09]} 57. Be3 {[%clk 00:00:13]} {[%emt 00:00:03]} Rc8
{[%clk 00:00:05]} {[%emt 00:00:12]} 58. Rg5 {[%clk 00:00:14]} {[%emt 00:00:02]}
Bc2+ {[%clk 00:00:06]} {[%emt 00:00:02]} 59. Kb2 {[%clk 00:00:16]} Ba4 {[%clk
00:00:07]} {[%emt 00:00:02]} 60. Rxf5+ {[%emt 00:00:01]} Kc4 61. Rc5+ {[%clk
00:00:19]} {[%emt 00:00:02]} Rxc5 {[%clk 00:00:12]} 62. Bxc5 {[%clk 00:00:15]}
{[%emt 00:00:07]} Bd7 {[%clk 00:00:14]} {[%emt 00:00:02]} 63. Kc2 {[%clk
00:00:10]} {[%emt 00:00:08]} Bxh3 {[%clk 00:00:14]} {[%emt 00:00:03]} 64. Kd2
{[%clk 00:00:12]} Bf5 {[%clk 00:00:16]} {[%emt 00:00:01]} 65. Be7 {[%clk
00:00:12]} {[%emt 00:00:03]} h4 {[%clk 00:00:14]} {[%emt 00:00:05]} 66. Bxh4
{[%clk 00:00:13]} {[%emt 00:00:02]} Kxb4 {[%clk 00:00:15]} {[%emt 00:00:02]}
1/2-1/2

[Event "1st Rapid Chess Tournament Château Montaiguillon"]
[Site "Montagne - Saint Emilion, France"]
[Date "2019.09.08"]
[Round "5.4"]
[White "Le Hetet, Nicolas"]
[Black "Estadieu, Romeo"]
[Result "0-1"]
[TimeControl "12' + 3''"]
[WhiteElo "2392"]
[BlackElo "2106"]

1. e4 {[%clk 00:12:03]} {[%emt 00:00:01]} e6 {[%clk 00:12:06]} {[%emt
00:00:01]} 2. d4 {[%clk 00:12:03]} {[%emt 00:00:04]} d5 {[%clk 00:12:08]} 3. e5
{[%clk 00:12:05]} c5 {[%clk 00:12:10]} 4. c3 {[%clk 00:12:06]} {[%emt
00:00:01]} Nc6 {[%clk 00:12:13]} 5. Nf3 {[%clk 00:12:08]} {[%emt 00:00:03]} Bd7
{[%clk 00:12:15]} 6. a3 {[%clk 00:12:08]} {[%emt 00:00:02]} f6 {[%clk
00:12:15]} {[%emt 00:00:03]} 7. Bd3 {[%clk 00:12:02]} {[%emt 00:00:09]} Qc7
{[%clk 00:12:04]} {[%emt 00:00:15]} 8. exf6 {[%clk 00:11:25]} {[%emt 00:00:40]}
Nxf6 {[%clk 00:12:00]} {[%emt 00:00:06]} 9. O-O {[%clk 00:11:26]} {[%emt
00:00:03]} Bd6 {[%clk 00:10:27]} {[%emt 00:01:37]} 10. dxc5 {[%clk 00:11:08]}
{[%emt 00:00:21]} Bxc5 {[%clk 00:10:28]} {[%emt 00:00:02]} 11. c4 {[%clk
00:10:47]} {[%emt 00:00:24]} O-O {[%clk 00:09:21]} {[%emt 00:01:10]} 12. b4
{[%clk 00:08:23]} {[%emt 00:02:27]} Bd6 {[%clk 00:09:19]} {[%emt 00:00:04]} 13.
Nc3 {[%clk 00:08:23]} {[%emt 00:00:03]} Ne5 {[%clk 00:07:19]} {[%emt 00:02:04]}
14. h3 {[%clk 00:05:14]} {[%emt 00:03:12]} Nxf3+ {[%clk 00:06:05]} {[%emt
00:01:17]} 15. Qxf3 {[%clk 00:05:15]} {[%emt 00:00:02]} Ne4 {[%clk 00:05:41]}
{[%emt 00:00:28]} 16. Qh5 {[%clk 00:05:02]} {[%emt 00:00:16]} Be8 {[%clk
00:04:30]} {[%emt 00:01:15]} 17. Qh4 {[%clk 00:04:13]} {[%emt 00:00:51]} Be7
{[%clk 00:03:45]} {[%emt 00:00:49]} 18. Qg4 {[%clk 00:02:24]} {[%emt 00:01:52]}
Nxc3 {[%clk 00:03:16]} {[%emt 00:00:32]} 19. cxd5 {[%clk 00:01:40]} {[%emt
00:00:46]} Nxd5 {[%clk 00:02:42]} {[%emt 00:00:38]} 20. Bh6 {[%clk 00:01:03]}
{[%emt 00:00:39]} Bf6 {[%clk 00:01:47]} {[%emt 00:00:58]} 21. Qxe6+ {[%clk
00:01:01]} {[%emt 00:00:05]} Qf7 {[%clk 00:01:24]} {[%emt 00:00:27]} 22. Qf5
{[%clk 00:00:58]} {[%emt 00:00:05]} gxh6 {[%clk 00:01:17]} {[%emt 00:00:11]}
0-1

[ePGN "0.1;DGT LiveChess/2.2.4"]

[Event "1st Rapid Chess Tournament Château Montaiguillon"]
[Site "Montagne - Saint Emilion, France"]
[Date "2019.09.08"]
[Round "6.2"]
[White "Estadieu, Romeo"]
[Black "Lagarde, Maxime"]
[Result "1-0"]
[TimeControl "12' + 3''"]
[WhiteElo "2106"]
[BlackElo "2599"]

1. d4 {[%clk 00:12:04]} {[%emt 00:00:01]} Nf6 {[%clk 00:12:05]} {[%emt
00:00:02]} 2. c4 {[%clk 00:12:06]} {[%emt 00:00:01]} c5 {[%clk 00:12:06]}
{[%emt 00:00:02]} 3. d5 {[%clk 00:12:07]} e6 {[%clk 00:12:08]} 4. Nc3 {[%clk
00:12:09]} {[%emt 00:00:01]} exd5 {[%clk 00:12:10]} {[%emt 00:00:01]} 5. cxd5
{[%clk 00:12:11]} {[%emt 00:00:01]} d6 {[%clk 00:12:10]} {[%emt 00:00:04]} 6.
Nf3 {[%clk 00:12:12]} g6 {[%clk 00:12:12]} {[%emt 00:00:01]} 7. Qa4+ {[%clk
00:12:14]} {[%emt 00:00:03]} Bd7 {[%clk 00:11:56]} {[%emt 00:00:17]} 8. Qb3
{[%clk 00:12:16]} {[%emt 00:00:03]} b5 {[%clk 00:11:52]} {[%emt 00:00:07]} 9.
Nxb5 {[%clk 00:12:15]} {[%emt 00:00:03]} Bxb5 {[%clk 00:11:54]} {[%emt
00:00:02]} 10. Qxb5+ {[%clk 00:12:17]} {[%emt 00:00:02]} Nbd7 {[%clk 00:11:56]}
11. g3 {[%clk 00:11:36]} {[%emt 00:00:44]} Bg7 {[%clk 00:11:29]} {[%emt
00:00:29]} 12. Bg2 {[%clk 00:11:35]} {[%emt 00:00:03]} O-O {[%clk 00:11:29]}
{[%emt 00:00:03]} 13. O-O {[%clk 00:11:09]} {[%emt 00:00:29]} Rb8 {[%clk
00:11:14]} {[%emt 00:00:19]} 14. Qd3 {[%clk 00:11:06]} {[%emt 00:00:04]} Re8
{[%clk 00:11:08]} {[%emt 00:00:10]} 15. Bf4 {[%clk 00:10:46]} {[%emt 00:00:24]}
Rxb2 {[%clk 00:10:54]} {[%emt 00:00:17]} 16. Nd2 {[%clk 00:09:42]} {[%emt
00:01:07]} Nb6 {[%clk 00:10:32]} {[%emt 00:00:25]} 17. Rfb1 {[%clk 00:09:10]}
{[%emt 00:00:37]} Nh5 {[%clk 00:08:09]} {[%emt 00:02:24]} 18. Rxb2 {[%clk
00:08:40]} {[%emt 00:00:33]} Nxf4 {[%clk 00:08:02]} {[%emt 00:00:10]} 19. gxf4
{[%clk 00:08:41]} {[%emt 00:00:02]} Bxb2 {[%clk 00:08:03]} {[%emt 00:00:02]} 20.
Rb1 {[%clk 00:08:44]} Bg7 {[%clk 00:07:59]} {[%emt 00:00:07]} 21. e3 {[%clk
00:08:32]} {[%emt 00:00:16]} h6 {[%clk 00:07:18]} {[%emt 00:00:44]} 22. Qa6
{[%clk 00:07:13]} {[%emt 00:01:21]} Qd7 {[%clk 00:06:24]} {[%emt 00:00:57]} 23.
Nc4 {[%clk 00:05:36]} {[%emt 00:01:40]} Nxc4 {[%clk 00:06:25]} {[%emt
00:00:02]} 24. Qxc4 {[%clk 00:05:38]} {[%emt 00:00:01]} g5 {[%clk 00:06:26]}
{[%emt 00:00:02]} 25. fxg5 {[%clk 00:05:29]} {[%emt 00:00:13]} hxg5 {[%clk
00:06:28]} 26. a4 {[%clk 00:05:12]} {[%emt 00:00:20]} g4 {[%clk 00:06:02]}
{[%emt 00:00:29]} 27. a5 {[%clk 00:04:36]} {[%emt 00:00:39]} Be5 {[%clk
00:06:03]} {[%emt 00:00:02]} 28. a6 {[%clk 00:04:22]} {[%emt 00:00:18]} Qf5
{[%clk 00:05:44]} {[%emt 00:00:21]} 29. Rb7 {[%clk 00:03:18]} {[%emt 00:01:07]}
Kg7 {[%clk 00:05:44]} {[%emt 00:00:03]} 30. Rxa7 {[%clk 00:01:50]} {[%emt
00:01:31]} Rh8 {[%clk 00:05:46]} 31. Qe4 {[%clk 00:01:39]} {[%emt 00:00:15]}
Qh5 {[%clk 00:03:04]} {[%emt 00:02:45]} 32. f4 {[%clk 00:00:25]} {[%emt
00:01:17]} gxf3 {[%clk 00:01:45]} {[%emt 00:01:22]} 33. Qxf3 {[%clk 00:00:27]}
Bxh2+ {[%clk 00:01:41]} {[%emt 00:00:07]} 34. Kf1 {[%clk 00:00:20]} {[%emt
00:00:11]} Qg6 {[%clk 00:01:40]} {[%emt 00:00:05]} 35. Rb7 {[%clk 00:00:14]}
{[%emt 00:00:09]} c4 {[%clk 00:01:22]} {[%emt 00:00:21]} 36. a7 {[%clk
00:00:09]} {[%emt 00:00:08]} c3 {[%clk 00:01:20]} {[%emt 00:00:04]} 37. Qe4
{[%clk 00:00:10]} {[%emt 00:00:02]} Qh5 {[%clk 00:00:38]} {[%emt 00:00:45]} 38.
Qf3 {[%clk 00:00:04]} {[%emt 00:00:10]} c2 {[%clk 00:00:30]} {[%emt 00:00:11]}
39. Rc7 {[%clk 00:00:07]} Qg6 {[%clk 00:00:16]} {[%emt 00:00:16]} 40. Qe4
{[%clk 00:00:09]} Qf6+ {[%clk 00:00:15]} {[%emt 00:00:04]} 41. Ke2 {[%clk
00:00:08]} {[%emt 00:00:04]} Rh4 {[%clk 00:00:06]} {[%emt 00:00:13]} 42. Qxc2
{[%clk 00:00:04]} {[%emt 00:00:07]} Qg5 {[%clk 00:00:05]} {[%emt 00:00:03]} 43.
Bf3 {[%clk 00:00:06]} {[%emt 00:00:01]} Qg1 {[%clk 00:00:06]} {[%emt 00:00:02]}
44. Qf5 {[%clk 00:00:06]} {[%emt 00:00:03]} Bg3 {[%clk 00:00:05]} {[%emt
00:00:05]} 45. Qxf7+ {[%clk 00:00:08]} {[%emt 00:00:01]} Kh6 {[%clk 00:00:07]}
46. Qg7# {[%clk 00:00:09]} {[%emt 00:00:01]} 1-0